fUSD/lending_fUSD_20250211
["ID","MTS","AMOUNT","RATE_DAILY","PERIOD"]
[352759490,1739293844136,-500.0,0.00016712,2]
[352759491,1739293844147,-500.0,0.00016712,2]
[352759492,1739293844157,-500.0,0.00016712,2]
[352759493,1739293844166,-500.0,0.00016712,2]
[352759494,1739293844175,-500.0,0.00016712,2]
[352759495,1739293844184,-969.28,0.00016712,2]
[352759496,1739293844194,-601.73,0.00016712,2]
[352759497,1739293844204,-500.0,0.00016712,2]
[352759498,1739293844213,-500.0,0.00016712,2]
[352759499,1739293844224,-500.0,0.00016712,2]
[352759500,1739293844236,-500.0,0.00016712,2]
[352759501,1739293844245,-500.0,0.00016712,2]
[352759502,1739293844254,-873.83,0.00016712,2]
[352759503,1739293844264,-336.19792142,0.00016712,2]
[352759504,1739293844274,-500.0,0.00016712,2]
[352759505,1739293844284,-416.36,0.00016712,2]
[352759506,1739293844293,-500.0,0.00016712,2]
[352759507,1739293844303,-500.0,0.00016712,2]
[352759508,1739293844314,-500.0,0.00016712,2]
[352759509,1739293844324,-500.0,0.00016712,2]
[352759510,1739293844334,-264.51686641,0.00016712,2]
[352759511,1739293844347,-500.0,0.00016712,2]
[352759512,1739293844357,-500.0,0.00016712,2]
[352759513,1739293844367,-500.0,0.00016712,2]
[352759514,1739293844377,-717.53,0.00016712,2]
[352759515,1739293844386,-500.0,0.00016712,2]
[352759516,1739293844396,-500.0,0.00016712,2]
[352759517,1739293844406,-500.0,0.00016712,2]
[352759518,1739293844415,-521.07,0.00016712,2]
[352759519,1739293844426,-500.0,0.00016712,2]
[352759520,1739293844436,-155.25,0.00016712,2]
[352759521,1739293844445,-500.0,0.00016712,2]
[352759522,1739293844456,-500.0,0.00016712,2]
[352759523,1739293844466,-500.0,0.00016712,2]
[352759524,1739293844476,-500.0,0.00016712,2]
[352759525,1739293844485,-500.0,0.00016712,2]
[352759526,1739293844495,-500.0,0.00016712,2]
[352759527,1739293844505,-502.35,0.00016712,2]
[352759528,1739293844514,-500.0,0.00016712,2]
[352759529,1739293844525,-500.0,0.00016712,2]
[352759530,1739293844535,-500.0,0.00016712,2]
[352759531,1739293844544,-500.0,0.00016712,2]
[352759532,1739293844554,-518.44,0.00016712,2]
[352759533,1739293844564,-500.0,0.00016712,2]
[352759534,1739293844574,-500.0,0.00016712,2]
[352759535,1739293844583,-500.0,0.00016712,2]
[352759536,1739293844592,-500.0,0.00016712,2]
[352759537,1739293844602,-500.0,0.00016712,2]
[352759538,1739293844612,-500.0,0.00016712,2]
[352759539,1739293844622,-500.0,0.00016712,2]
[352759540,1739293844631,-500.0,0.00016712,2]
[352759541,1739293844641,-567.83,0.00016712,2]
[352759542,1739293844651,-500.0,0.00016712,2]
[352759543,1739293844660,-33796.29433049,0.00016721,2]
[352759544,1739293844673,-500.0,0.00016747,2]
[352759545,1739293844683,-500.0,0.00016747,2]
[352759546,1739293844693,-693.22,0.00016747,2]
[352759547,1739293844705,-500.0,0.00016747,2]
[352759548,1739293844716,-500.0,0.00016747,2]
[352759549,1739293844727,-567.92,0.00016747,2]
[352759550,1739293844737,-1128.9,0.00016747,2]
[352759551,1739293844747,-500.0,0.00016747,2]
[352759552,1739293844757,-501.73,0.00016747,2]
[352759553,1739293844766,-587.09,0.00016747,2]
[352759554,1739293844777,-500.0,0.00016747,2]
[352759555,1739293844787,-527.77,0.00016747,2]
[352759556,1739293844798,-581.2,0.00016747,2]
[352759557,1739293844808,-519.35,0.00016747,2]
[352759558,1739293844820,-500.0,0.00016747,2]
[352759559,1739293844830,-662.47,0.00016747,2]
[352759560,1739293844841,-500.0,0.00016747,2]
[352759561,1739293844851,-500.0,0.00016747,2]
[352759562,1739293844861,-500.0,0.00016747,2]
[352759563,1739293844870,-732.93,0.00016747,2]
[352759564,1739293844880,-639.57,0.00016747,2]
[352759565,1739293844891,-500.0,0.00016747,2]
[352759566,1739293844901,-500.0,0.00016747,2]
[352759567,1739293844911,-500.0,0.00016748,2]
[352759568,1739293844922,-1406.94,0.00016748,2]
[352759569,1739293844932,-682.78,0.00016748,2]
[352759570,1739293844943,-500.0,0.00016748,2]
[352759571,1739293844956,-537.35,0.00016748,2]
[352759572,1739293844967,-513.692142,0.00016748,2]
[352759573,1739293844978,-500.0,0.00016748,2]
[352759574,1739293844990,-500.0,0.00016748,2]
[352759575,1739293845001,-687.9,0.00016748,2]
[352759576,1739293845013,-500.0,0.00016748,2]
[352759577,1739293845023,-500.0,0.00016748,2]
[352759578,1739293845036,-500.0,0.00016748,2]
[352759579,1739293845047,-500.0,0.00016748,2]
[352759580,1739293845060,-434.88663,0.00016748,2]
[352759581,1739293845071,-500.0,0.00016748,2]
[352759582,1739293845084,-500.0,0.00016748,2]
[352759583,1739293845094,-675.37,0.00016748,2]
[352759584,1739293845107,-500.0,0.00016748,2]
[352759585,1739293845118,-590.1,0.00016748,2]
[352759586,1739293845130,-603.98,0.00016748,2]
[352759587,1739293845142,-500.0,0.00016748,2]
[352759588,1739293845154,-1632.47,0.00016748,2]
[352759589,1739293845165,-556.79,0.00016748,2]
[352759590,1739293845176,-500.0,0.00016748,2]
[352759591,1739293845188,-500.0,0.00016748,2]
[352759592,1739293845199,-676.0,0.00016748,2]
[352759593,1739293845221,-500.0,0.00016748,2]
[352759594,1739293845234,-1210.01,0.00016748,2]
[352759595,1739293845245,-500.0,0.00016748,2]
[352759596,1739293845257,-746.89,0.00016748,2]
[352759597,1739293845271,-562.68,0.00016748,2]
[352759598,1739293845284,-694.12,0.00016748,2]
[352759599,1739293845296,-730.83,0.00016748,2]
[352759600,1739293845309,-1883.928,0.00016771,2]
[352759601,1739293845322,-516.99,0.000168,7]
[352759602,1739293845334,-200.0,0.000168,6]
[352759603,1739293845346,-460.36,0.00016813,2]
[352759604,1739293845358,-500.0,0.00016832,2]
[352759605,1739293845369,-500.0,0.00016848,2]
[352759606,1739293845381,-513.58,0.00016848,2]
[352759607,1739293845391,-500.0,0.00016848,2]
[352759608,1739293845402,-500.0,0.00016848,2]
[352759609,1739293845414,-500.0,0.00016848,2]
[352759610,1739293845430,-500.0,0.00016848,2]
[352759611,1739293845440,-276.3,0.00016848,2]
[352759612,1739293845450,-500.0,0.00016848,2]
[352759613,1739293845465,-500.0,0.00016848,2]
[352759614,1739293845475,-500.0,0.00016848,2]
[352759615,1739293845485,-500.0,0.00016848,2]
[352759616,1739293845494,-500.0,0.00016848,2]
[352759617,1739293845504,-392.2,0.00016848,2]
[352759618,1739293845514,-500.0,0.00016848,2]
[352759619,1739293845523,-500.0,0.00016848,2]
[352759620,1739293845533,-500.0,0.00016848,2]
[352759621,1739293845543,-325.82430592,0.00016848,2]
[352759622,1739293845553,-614.77,0.00016848,2]
[352759623,1739293845563,-500.0,0.00016848,2]
[352759624,1739293845573,-586.25,0.00016848,2]
[352759625,1739293845583,-500.0,0.00016848,2]
[352759626,1739293845593,-500.0,0.00016848,2]
[352759627,1739293845603,-500.0,0.00016848,2]
[352759628,1739293845613,-2668.34,0.00016848,2]
[352759629,1739293845623,-500.0,0.00016848,2]
[352759630,1739293845632,-537.55,0.00016848,2]
[352759631,1739293845642,-500.0,0.00016848,2]
[352759632,1739293845652,-500.0,0.00016848,2]
[352759633,1739293845662,-500.0,0.00016848,2]
[352759634,1739293845672,-500.0,0.00016848,2]
[352759635,1739293845681,-500.0,0.00016848,2]
[352759636,1739293845691,-500.0,0.00016848,2]
[352759637,1739293845700,-500.0,0.00016848,2]
[352759638,1739293845713,-500.0,0.00016848,2]
[352759639,1739293845723,-289.98402192,0.00016848,2]
[352759640,1739293845732,-374.40959478,0.00016848,2]
[352759641,1739293845742,-500.0,0.00016848,2]
[352759642,1739293845751,-494.78813088,0.00016848,2]
[352759643,1739293845761,-500.0,0.00016848,2]
[352759644,1739293845770,-500.0,0.00016848,2]
[352759645,1739293845779,-2895.47,0.00016848,2]
[352759646,1739293845789,-500.0,0.00016848,2]
[352759647,1739293845799,-500.0,0.00016848,2]
[352759648,1739293845809,-500.0,0.00016848,2]
[352759649,1739293845819,-500.0,0.00016848,2]
[352759650,1739293845828,-500.0,0.00016848,2]
[352759651,1739293845838,-500.0,0.00016848,2]
[352759652,1739293845848,-520.11,0.00016848,2]
[352759653,1739293845857,-500.0,0.00016848,2]
[352759654,1739293845868,-500.0,0.00016848,2]
[352759655,1739293845878,-500.0,0.00016848,2]
[352759656,1739293845888,-500.0,0.00016848,2]
[352759657,1739293845898,-500.0,0.00016848,2]
[352759658,1739293845908,-500.0,0.00016848,2]
[352759659,1739293845918,-500.0,0.00016848,2]
[352759660,1739293845927,-500.0,0.00016848,2]
[352759661,1739293845937,-500.0,0.00016848,2]
[352759662,1739293845948,-603.86,0.00016848,2]
[352759663,1739293845961,-500.0,0.00016848,2]
[352759664,1739293845971,-401.73313847,0.00016848,2]
[352759665,1739293845980,-500.0,0.00016848,2]
[352759666,1739293845991,-500.0,0.00016848,2]
[352759667,1739293846001,-500.0,0.00016848,2]
[352759668,1739293846011,-500.0,0.00016848,2]
[352759669,1739293846020,-500.0,0.00016848,2]
[352759670,1739293846030,-500.0,0.00016848,2]
[352759671,1739293846039,-500.0,0.00016848,2]
[352759672,1739293846049,-500.0,0.00016848,2]
[352759673,1739293846058,-500.0,0.00016848,2]
[352759674,1739293846067,-500.0,0.00016848,2]
[352759675,1739293846077,-500.0,0.00016848,2]
[352759676,1739293846086,-1106.83,0.00016848,2]
[352759677,1739293846096,-500.0,0.00016848,2]
[352759678,1739293846105,-588.27,0.00016848,2]
[352759679,1739293846118,-500.0,0.00016848,2]
[352759680,1739293846128,-500.0,0.00016848,2]
[352759681,1739293846137,-500.0,0.00016848,2]
[352759682,1739293846147,-500.0,0.00016848,2]
[352759683,1739293846157,-566.82,0.00016848,2]
[352759684,1739293846167,-500.0,0.00016848,2]
[352759685,1739293846176,-500.0,0.00016848,2]
[352759687,1739293846186,-548.08,0.00016848,2]
[352759689,1739293846196,-500.0,0.00016848,2]
[352759691,1739293846206,-500.0,0.00016848,2]
[352759693,1739293846216,-1373.73,0.00016848,2]
[352759694,1739293846226,-500.0,0.00016848,2]
[352759697,1739293846238,-1438.83,0.00016848,2]
[352759698,1739293846249,-500.0,0.00016848,2]
[352759700,1739293846259,-727.29,0.00016848,2]
[352759701,1739293846270,-500.0,0.00016848,2]
[352759702,1739293846280,-1013.59,0.00016848,2]
[352759703,1739293846289,-500.0,0.00016848,2]
[352759704,1739293846299,-678.73,0.00016848,2]
[352759706,1739293846308,-500.0,0.00016848,2]
[352759708,1739293846318,-164.56,0.00016848,2]
[352759710,1739293846328,-500.0,0.00016848,2]
[352759712,1739293846339,-500.0,0.00016848,2]
[352759714,1739293846349,-500.0,0.00016848,2]
[352759716,1739293846359,-500.0,0.00016848,2]
[352759718,1739293846369,-500.0,0.00016848,2]
[352759720,1739293846379,-576.31,0.00016848,2]
[352759722,1739293846391,-500.0,0.00016848,2]
[352759724,1739293846402,-728.38,0.00016848,2]
[352759726,1739293846414,-500.0,0.00016848,2]
[352759728,1739293846424,-500.0,0.00016848,2]
[352759730,1739293846434,-500.0,0.00016848,2]
[352759732,1739293846443,-500.0,0.00016848,2]
[352759734,1739293846454,-500.0,0.00016848,2]
[352759736,1739293846467,-500.0,0.00016848,2]
[352759738,1739293846477,-500.0,0.00016848,2]
[352759740,1739293846487,-500.0,0.00016848,2]
[352759742,1739293846497,-500.0,0.00016848,2]
[352759744,1739293846508,-559.26,0.00016848,2]
[352759746,1739293846519,-878.32,0.00016848,2]
[352759748,1739293846529,-500.0,0.00016848,2]
[352759750,1739293846539,-636.27,0.00016848,2]
[352759752,1739293846548,-500.0,0.00016848,2]
[352759753,1739293846559,-500.0,0.00016848,2]
[352759756,1739293846571,-573.11,0.00016848,2]
[352759757,1739293846581,-659.14,0.00016848,2]
[352759759,1739293846590,-500.0,0.00016848,2]
[352759761,1739293846600,-500.0,0.00016848,2]
[352759763,1739293846611,-560.36,0.00016848,2]
[352759765,1739293846621,-500.0,0.00016848,2]
[352759767,1739293846632,-500.0,0.00016848,2]
[352759769,1739293846642,-1000.0,0.00016848,2]
[352759772,1739293846652,-500.0,0.00016848,2]
[352759774,1739293846663,-1757.91,0.00016848,2]
[352759776,1739293846674,-500.0,0.00016848,2]
[352759778,1739293846686,-542.92,0.00016848,2]
[352759780,1739293846696,-649.06,0.00016848,2]
[352759782,1739293846708,-500.0,0.00016848,2]
[352759784,1739293846718,-500.0,0.00016848,2]
[352759786,1739293846729,-500.0,0.00016848,2]
[352759788,1739293846739,-500.0,0.00016848,2]
[352759790,1739293846749,-500.0,0.00016848,2]
[352759792,1739293846760,-477.66,0.00016848,2]
[352759794,1739293846771,-500.0,0.00016848,2]
[352759796,1739293846782,-500.0,0.00016848,2]
[352759798,1739293846792,-500.0,0.00016848,2]
[352759800,1739293846805,-579.68,0.00016848,2]
[352759802,1739293846818,-500.0,0.00016848,2]
[352759804,1739293846830,-500.0,0.00016848,2]
[352759806,1739293846841,-500.0,0.00016848,2]
[352759809,1739293846852,-500.0,0.00016848,2]
[352759810,1739293846864,-500.0,0.00016848,2]
[352759811,1739293846875,-500.0,0.00016848,2]
[352759812,1739293846886,-500.0,0.00016848,2]
[352759813,1739293846898,-500.0,0.00016848,2]
[352759815,1739293846909,-500.0,0.00016848,2]
[352759817,1739293846919,-500.0,0.00016849,2]
[352759819,1739293846930,-500.0,0.00016849,2]
[352759821,1739293846941,-500.0,0.00016849,2]
[352759823,1739293846951,-500.0,0.00016849,2]
[352759825,1739293846963,-437.43,0.00016849,2]
[352759827,1739293846974,-198.8,0.00016849,2]
[352759829,1739293846985,-500.0,0.00016849,2]
[352759831,1739293846996,-474.80307341,0.00016849,2]
[352759833,1739293847007,-500.0,0.00016849,2]
[352759835,1739293847017,-500.0,0.00016849,2]
[352759837,1739293847027,-500.0,0.00016849,2]
[352759839,1739293847037,-969.28,0.00016849,2]
[352759841,1739293847047,-500.0,0.00016849,2]
[352759843,1739293847056,-500.0,0.00016849,2]
[352759844,1739293847066,-500.0,0.00016849,2]
[352759845,1739293847077,-177.25712914,0.00016849,2]
[352759846,1739293847087,-500.0,0.00016849,2]
[352759847,1739293847098,-873.83,0.00016849,2]
[352759848,1739293847109,-500.0,0.00016849,2]
[352759850,1739293847119,-500.0,0.00016849,2]
[352759852,1739293847130,-500.0,0.00016849,2]
[352759854,1739293847141,-500.0,0.00016849,2]
[352759857,1739293847150,-500.0,0.00016849,2]
[352759860,1739293847160,-500.0,0.00016849,2]
[352759862,1739293847171,-500.0,0.00016849,2]
[352759865,1739293847181,-500.0,0.00016849,2]
[352759867,1739293847191,-717.53,0.00016849,2]
[352759868,1739293847201,-500.0,0.00016849,2]
[352759870,1739293847213,-500.0,0.00016849,2]
[352759871,1739293847226,-500.0,0.00016849,2]
[352759872,1739293847236,-521.07,0.00016849,2]
[352759873,1739293847249,-500.0,0.00016849,2]
[352759874,1739293847259,-500.0,0.00016849,2]
[352759875,1739293847270,-500.0,0.00016849,2]
[352759876,1739293847280,-481.41587995,0.00016849,2]
[352759877,1739293847291,-500.0,0.00016849,2]
[352759878,1739293847302,-500.0,0.00016849,2]
[352759879,1739293847313,-500.0,0.00016849,2]
[352759880,1739293847327,-500.0,0.00016849,2]
[352759881,1739293847338,-500.0,0.00016849,2]
[352759882,1739293847348,-500.0,0.00016849,2]
[352759883,1739293847358,-500.0,0.00016849,2]
[352759884,1739293847369,-500.0,0.00016849,2]
[352759885,1739293847382,-494.51950136,0.00016849,2]
[352759886,1739293847392,-500.0,0.00016849,2]
[352759887,1739293847403,-500.0,0.00016849,2]
[352759888,1739293847414,-500.0,0.00016849,2]
[352759889,1739293847425,-500.0,0.00016849,2]
[352759890,1739293847435,-500.0,0.00016849,2]
[352759891,1739293847445,-624.21598075,0.00016849,2]
[352759892,1739293847459,-567.83,0.00016849,2]
[352759893,1739293847470,-500.0,0.00016849,2]
[352759894,1739293847482,-493.95,0.00016849,2]
[352759895,1739293847492,-1351.32745806,0.00016863,2]
[352759896,1739293847503,-500.0,0.0001688,2]
[352759897,1739293847513,-500.0,0.00016884,2]
[352759898,1739293847523,-500.0,0.00016884,2]
[352759899,1739293847534,-693.22,0.00016884,2]
[352759900,1739293847545,-500.0,0.00016884,2]
[352759901,1739293847555,-500.0,0.00016884,2]
[352759902,1739293847566,-567.92,0.00016884,2]
[352759903,1739293847576,-1128.9,0.00016884,2]
[352759904,1739293847589,-500.0,0.00016884,2]
[352759905,1739293847600,-501.73,0.00016884,2]
[352759906,1739293847610,-587.09,0.00016884,2]
[352759907,1739293847621,-500.0,0.00016884,2]
[352759908,1739293847632,-527.77,0.00016884,2]
[352759909,1739293847642,-581.2,0.00016884,2]
[352759910,1739293847652,-519.35,0.00016884,2]
[352759911,1739293847662,-500.0,0.00016884,2]
[352759912,1739293847673,-662.47,0.00016884,2]
[352759913,1739293847685,-500.0,0.00016884,2]
[352759914,1739293847694,-500.0,0.00016884,2]
[352759915,1739293847707,-500.0,0.00016884,2]
[352759916,1739293847717,-732.93,0.00016884,2]
[352759917,1739293847729,-639.57,0.00016884,2]
[352759918,1739293847740,-500.0,0.00016884,2]
[352759919,1739293847750,-500.0,0.00016885,2]
[352759920,1739293847760,-1406.94,0.00016885,2]
[352759921,1739293847771,-682.78,0.00016885,2]
[352759922,1739293847782,-500.0,0.00016885,2]
[352759923,1739293847794,-537.35,0.00016885,2]
[352759924,1739293847809,-513.692142,0.00016885,2]
[352759925,1739293847820,-500.0,0.00016885,2]
[352759926,1739293847832,-500.0,0.00016885,2]
[352759927,1739293847844,-687.9,0.00016885,2]
[352759928,1739293847855,-500.0,0.00016885,2]
[352759929,1739293847866,-500.0,0.00016885,2]
[352759930,1739293847877,-500.0,0.00016885,2]
[352759931,1739293847889,-500.0,0.00016885,2]
[352759932,1739293847900,-434.88663,0.00016885,2]
[352759933,1739293847912,-500.0,0.00016885,2]
[352759934,1739293847923,-500.0,0.00016885,2]
[352759935,1739293847934,-675.37,0.00016885,2]
[352759936,1739293847946,-500.0,0.00016885,2]
[352759937,1739293847961,-590.1,0.00016885,2]
[352759938,1739293847972,-603.98,0.00016885,2]
[352759939,1739293847983,-500.0,0.00016885,2]
[352759940,1739293847994,-1632.47,0.00016885,2]
[352759941,1739293848005,-556.79,0.00016885,2]
[352759942,1739293848017,-500.0,0.00016885,2]
[352759943,1739293848029,-500.0,0.00016885,2]
[352759944,1739293848042,-676.0,0.00016885,2]
[352759945,1739293848053,-500.0,0.00016885,2]
[352759946,1739293848065,-1210.01,0.00016885,2]
[352759947,1739293848077,-500.0,0.00016885,2]
[352759948,1739293848088,-746.89,0.00016885,2]
[352759949,1739293848100,-562.68,0.00016885,2]
[352759950,1739293848111,-694.12,0.00016885,2]
[352759951,1739293848121,-730.83,0.00016885,2]
[352759952,1739293848133,-500.0,0.000169,6]
[352759953,1739293848145,-500.0,0.000169,2]
[352759954,1739293848156,-1113.57263961,0.00016915,2]
[352759955,1739293848169,-33796.29433049,0.00016969,2]
[352759956,1739293848181,-166.68,0.00016985,2]
[352759957,1739293848193,-500.0,0.00016985,2]
[352759958,1739293848206,-500.0,0.00016985,2]
[352759959,1739293848216,-558.5,0.00016985,2]
[352759960,1739293848235,-500.0,0.00016985,2]
[352759961,1739293848247,-500.0,0.00016985,2]
[352759962,1739293848257,-500.0,0.00016985,2]
[352759963,1739293848271,-164.11,0.00016985,2]
[352759964,1739293848282,-500.0,0.00016985,2]
[352759965,1739293848293,-500.0,0.00016985,2]
[352759966,1739293848304,-500.0,0.00016985,2]
[352759967,1739293848317,-614.77,0.00016985,2]
[352759968,1739293848330,-479.52264703,0.00016985,2]
[352759969,1739293848350,-20.47735297,0.00016985,2]
[352759970,1739293848361,-468.69518627,0.00016985,2]
[352759971,1739293848375,-31.30481373,0.00016985,2]
[352759972,1739293848386,-2668.34,0.00016985,2]
[352759973,1739293848398,-500.0,0.00016985,2]
[352759974,1739293848411,-537.55,0.00016985,2]
[352759975,1739293848424,-399.94248582,0.00016985,2]
[352759976,1739293848439,-100.05751418,0.00016985,2]
[352759977,1739293848451,-637.36,0.00016985,2]
[352759978,1739293848465,-500.0,0.00016985,2]
[352759979,1739293848477,-500.0,0.00016985,2]
[352759980,1739293848491,-500.0,0.00016985,2]
[352759981,1739293848504,-334.95729617,0.00016985,2]
[352759982,1739293848517,-134.7251895,0.00016985,2]
[352759983,1739293848541,-500.0,0.00016884,2]
[352759984,1739293848552,-1139.0799404,0.00016985,2]
[352759985,1739293848566,-456.7858882,0.00016985,2]
[352759986,1739293848587,-556.91467465,0.00016985,2]
[352759987,1739293848600,-305.48749733,0.00016985,2]
[352759988,1739293848615,-302.47680992,0.00016985,2]
[352759989,1739293848627,-495.31395388,0.00016985,2]
[352759990,1739293848665,-4.68604612,0.00016985,2]
[352759991,1739293848676,-500.0,0.00016985,2]
[352759992,1739293848687,-500.0,0.00016985,2]
[352759993,1739293848698,-500.0,0.00016985,2]
[352759994,1739293848710,-232.18270579,0.00016985,2]
[352759995,1739293848725,-287.92729421,0.00016985,2]
[352759996,1739293848737,-500.0,0.00016985,2]
[352759997,1739293848749,-500.0,0.00016985,2]
[352759998,1739293848760,-500.0,0.00016985,2]
[352759999,1739293848772,-478.58424607,0.00016985,2]
[352760000,1739293849526,569.888987,8.836e-05,2]
[352760001,1739293849549,531.089413,8.836e-05,2]
[352760002,1739293849562,-21.41575393,0.00016985,2]
[352760003,1739293849571,-381.75327414,0.00016985,2]
[352760004,1739293849584,-118.24672586,0.00016985,2]
[352760005,1739293849594,-500.0,0.00016985,2]
[352760006,1739293849604,-500.0,0.00016985,2]
[352760007,1739293849614,-500.0,0.00016985,2]
[352760008,1739293849624,-500.0,0.00016985,2]
[352760009,1739293849633,-603.86,0.00016985,2]
[352760010,1739293849642,-500.0,0.00016985,2]
[352760011,1739293849652,-500.0,0.00016985,2]
[352760012,1739293849661,-500.0,0.00016985,2]
[352760013,1739293849670,-500.0,0.00016985,2]
[352760014,1739293849679,-500.0,0.00016985,2]
[352760015,1739293849689,-500.0,0.00016985,2]
[352760016,1739293849698,-500.0,0.00016985,2]
[352760017,1739293849708,-500.0,0.00016985,2]
[352760018,1739293849718,-500.0,0.00016985,2]
[352760019,1739293849727,-500.0,0.00016985,2]
[352760020,1739293849736,-500.0,0.00016985,2]
[352760021,1739293849746,-500.0,0.00016985,2]
[352760022,1739293849755,-500.0,0.00016985,2]
[352760023,1739293849765,-500.0,0.00016985,2]
[352760024,1739293849774,-500.0,0.00016985,2]
[352760025,1739293849783,-500.0,0.00016985,2]
[352760026,1739293849792,-500.0,0.00016985,2]
[352760027,1739293849802,-566.82,0.00016985,2]
[352760028,1739293849811,-500.0,0.00016985,2]
[352760029,1739293849822,-500.0,0.00016985,2]
[352760030,1739293849831,-548.08,0.00016985,2]
[352760031,1739293849841,-500.0,0.00016985,2]
[352760032,1739293849850,-500.0,0.00016985,2]
[352760033,1739293849860,-1373.73,0.00016985,2]
[352760034,1739293849870,-258.71155957,0.00016985,2]
[352760035,1739293850004,-270.1927228,0.00016574,2]
[352760036,1739293850047,-229.8072772,0.00016574,2]
[352760037,1739293850056,-241.28844043,0.00016985,2]
[352760038,1739293850066,-1438.83,0.00016985,2]
[352760039,1739293850075,-500.0,0.00016985,2]
[352760040,1739293850085,-727.29,0.00016985,2]
[352760041,1739293850095,-500.0,0.00016985,2]
[352760042,1739293850104,-1013.59,0.00016985,2]
[352760043,1739293850114,-500.0,0.00016985,2]
[352760044,1739293850123,-500.0,0.00016985,2]
[352760045,1739293850134,-678.73,0.00016985,2]
[352760046,1739293850143,-500.0,0.00016985,2]
[352760047,1739293850153,-500.0,0.00016985,2]
[352760048,1739293850162,-500.0,0.00016985,2]
[352760049,1739293850173,-500.0,0.00016985,2]
[352760050,1739293850183,-500.0,0.00016985,2]
[352760051,1739293850193,-576.31,0.00016985,2]
[352760052,1739293850203,-618.96844438,0.00016985,2]
[352760053,1739293850216,-728.38,0.00016985,2]
[352760054,1739293850228,-500.0,0.00016985,2]
[352760055,1739293850237,-500.0,0.00016985,2]
[352760056,1739293850249,-500.0,0.00016985,2]
[352760057,1739293850258,-285.87187428,0.00016985,2]
[352760058,1739293850269,-500.0,0.00016985,2]
[352760059,1739293850279,-500.0,0.00016985,2]
[352760060,1739293850288,-500.0,0.00016985,2]
[352760061,1739293850298,-500.0,0.00016985,2]
[352760062,1739293850307,-559.26,0.00016985,2]
[352760063,1739293850317,-878.32,0.00016985,2]
[352760064,1739293850327,-500.0,0.00016985,2]
[352760065,1739293850336,-636.27,0.00016985,2]
[352760066,1739293850345,-522.93,0.00016985,2]
[352760067,1739293850355,-500.0,0.00016985,2]
[352760068,1739293850365,-659.14,0.00016985,2]
[352760069,1739293850374,-504.23056372,0.00016985,2]
[352760070,1739293850386,-68.87943628,0.00016985,2]
[352760071,1739293850396,-195.68456372,0.00016985,2]
[352760072,1739293850407,-304.31543628,0.00016985,2]
[352760073,1739293850417,-164.21636372,0.00016985,2]
[352760074,1739293850591,-335.78363628,0.00016985,2]
[352760075,1739293850600,-57.04520547,0.00016985,2]
[352760076,1739293850678,-500.0,0.00016473,2]